[Event "Croatian 1A League 2022"]
[Site "Porec"]
[Date "2022.09.27"]
[Round "4.5"]
[White "Jovanic, Ognjen"]
[Black "Kovacevic, Blazimir"]
[Result "1/2-1/2"]
[ECO "D36"]
[WhiteElo "2507"]
[BlackElo "2405"]
[Annotator "TA"]
[PlyCount "81"]
[EventDate "2022.09.24"]
[EventType "team-tourn"]
[EventCountry "CRO"]
[SourceTitle "playchess.com"]
[Source "ChessBase"]
[SourceQuality "1"]
[TimeControl "40/5400+30:1800+30"]

{[%evp 20,81,31,34,26,2,10,10,0,0,0,0,0,0,0,0,0,-36,-10,-30,-27,-41,0,0,0,0,0,0,0,0,0,-53,-12,-9,-4,-14,0,-18,0,0,0,0,0,0,0,0,0,0,0,0,0,0,0,0,0,0,0,0,0,0,0,0,0,0]} 1. d4 {[%emt 0:00:32]} Nf6 {[%emt 0:00:07]} 2. c4 {[%emt 0:00:27]} e6 {[%emt 0:00:07]} 3. Nc3 {[%emt 0:00:13]} d5 {[%emt 0:00:28]} 4. cxd5 {[%emt 0:03:21]} exd5 {[%emt 0:00:09]} 5. Bg5 {[%emt 0:00:21]} c6 {[%emt 0:00:24]} 6. e3 {[%emt 0:00:10]} Nbd7 {[%emt 0:00:22]} 7. Bd3 {[%emt 0:01:06]} Be7 {[%emt 0:00:07]} 8. Nge2 {[%emt 0:02:21]} Nh5 {[%emt 0:01:29]} 9. Bxe7 {[%emt 0:02:17]} Qxe7 {[%emt 0:00:07]} 10. Qc2 {[%emt 0:01:37]} Nb6 {[%emt 0:01:54]} 11. O-O {[%emt 0:05:11]} g6 {[%emt 0:00:38] D36: Queen's Gambit Declined: Exchange Variation: Main line (5 Bg5 c6 6 Qc2).} 12. Rae1 {[%emt 0:03:32]} O-O {[%emt 0:00:22]} 13. Nc1 {[%emt 0:00:51]} Ng7 {[%emt 0:03:09]} 14. f3 {[%emt 0:09:46]} Bf5 {[%emt 0:01:20][%cal Bc8f5,Bf5e6,Be6c4][%mdl 32]} 15. e4 {[%emt 0:02:05]} dxe4 {[%emt 0:00:07]} 16. fxe4 {[%emt 0:00:07]} Be6 {[%emt 0:00:03] [#]} 17. N1e2 $146 {[%emt 0:08:59]} ({Predecessor:} 17. N3e2 Rad8 18. a3 f5 19. e5 Nd5 20. Rf3 Nh5 21. Nb3 f4 22. Nc5 Bg4 23. Be4 Bxf3 24. Bxf3 {½-½ (35) Riazantsev,A (2646)-Kasimdzhanov,R (2704) Berlin 2015}) 17... Rad8 {[%emt 0:04:15]} (17... f5 {feels hotter.} 18. Nf4 Qb4 19. d5 fxe4 20. Rxe4 Qc5+) 18. h3 {[%emt 0:05:16] Prevents Bg4.} c5 {[%emt 0:29:35] [#] White must now prevent ...c4.} 19. dxc5 {[%emt 0:04:36]} (19. d5 c4 20. Bxc4 Nxc4 $17) 19... Qxc5+ {[%emt 0:00:06]} 20. Kh1 {[%emt 0:00:04]} Bc4 {[%emt 0:04:43]} 21. Nd5 {[%emt 0:13:04]} Nxd5 {[%emt 0:11:59]} 22. exd5 {[%emt 0:02:18]} ({Wrong is} 22. Qxc4 $2 Qxc4 23. Bxc4 Ne3 $19) 22... Rc8 {[%emt 0:00:36]} 23. Rc1 {[%emt 0:04:26][%cal Rc2c4]} Bxd3 {[%emt 0:00:29]} 24. Qxd3 {[%emt 0:00:06]} Qb6 {[%emt 0:11:56]} 25. b3 {[%emt 0:04:02]} ({Better is} 25. d6 $11) 25... Rxc1 {[%emt 0:03:41]} 26. Rxc1 {[%emt 0:00:09] The position is equal.} ({But not} 26. Nxc1 Nf5 $15) 26... Rd8 {[%emt 0:00:04]} 27. Nc3 {[%emt 0:04:05]} Nh5 {[%emt 0:02:21]} 28. Rd1 {[%emt 0:03:16]} Qf2 {[%emt 0:03:50]} 29. d6 {[%emt 0:07:00]} Qf4 {[%emt 0:07:05]} 30. Kg1 {[%emt 0:03:04]} Qe5 {[%emt 0:01:46]} 31. Ne4 {[%emt 0:02:07]} Nf4 {[%emt 0:01:54]} 32. Qc4 {[%emt 0:01:59]} Kg7 {[%emt 0:01:55]} 33. a4 {[%emt 0:01:40]} b6 {[%emt 0:02:09]} 34. Kh1 {[%emt 0:02:03]} Ne6 {[%emt 0:04:19]} 35. Rd5 {[%emt 0:01:45]} ({Reject} 35. d7 Nf8 $17) 35... Qa1+ {[%emt 0:00:05]} 36. Kh2 {[%emt 0:00:02]} Nf4 {[%emt 0:02:41]} 37. Rd2 {[%emt 0:01:03]} Qe5 {[%emt 0:00:00]} 38. Kh1 {[%emt 0:02:07]} Qa1+ {[%emt 0:00:20]} 39. Kh2 {[%emt 0:00:00]} Qe5 {[%emt 0:00:06]} 40. Kg1 {[%emt 0:00:00]} Ne6 {[%emt 0:00:00]} 41. Rd5 {[%emt 0:04:01] Against Nc5.  Weighted Error Value: White=0.07 (flawless) /Black=0.04 (flawless)} 1/2-1/2

[Event "Croatian 1A League 2022"]
[Site "Porec"]
[Date "2022.09.27"]
[Round "4.6"]
[White "Loncar, Robert"]
[Black "Srbis, Jurica"]
[Result "0-1"]
[ECO "E93"]
[WhiteElo "2367"]
[BlackElo "2442"]
[Annotator "TA"]
[PlyCount "63"]
[EventDate "2022.09.24"]
[EventType "team-tourn"]
[EventCountry "CRO"]
[SourceTitle "playchess.com"]
[Source "ChessBase"]
[SourceQuality "1"]
[TimeControl "40/5400+30:1800+30"]

{[%evp 18,63,83,86,59,67,88,83,112,52,78,48,41,51,51,22,36,-45,-31,-68,-68,-87,-81,-69,-57,-164,-159,-198,-204,-222,-204,-247,-229,-374,-371,-347,-320,-547,-586,-570,-551,-708,-703,-699,-686,-832,-791,-29987]} 1. Nf3 {[%emt 0:10:40]} Nf6 {[%emt 0:00:56]} 2. c4 {[%emt 0:00:03]} g6 {[%emt 0:00:19]} 3. Nc3 {[%emt 0:00:30]} Bg7 {[%emt 0:00:05]} 4. d4 {[%emt 0:00:27]} O-O {[%emt 0:00:07]} 5. e4 {[%emt 0:00:23]} d6 {[%emt 0:00:06]} 6. Be2 {[%emt 0:05:39]} Na6 {[%emt 0:00:19]} 7. Be3 {[%emt 0:01:09]} e5 {[%emt 0:11:22]} 8. d5 {[%emt 0:01:54]} Nc5 {[%emt 0:06:04]} 9. Nd2 {[%emt 0:00:22]} a5 {[%emt 0:00:16]} 10. g4 {[%emt 0:02:25] 10.h4 is a critical line.} c6 {[%emt 0:13:17] E93: King's Indian: Classical: Petrosian System with 7...Nbd7.} 11. h4 {[%emt 0:03:15][%cal Bh2h4,Bh4h5][%mdl 32]} Ne8 {[%emt 0:06:03]} 12. Qc2 {[%emt 0:26:16]} Bd7 {[%emt 0:16:43] White is better.} 13. g5 {[%emt 0:02:56]} (13. O-O-O $16) 13... Nc7 {[%emt 0:06:23] [#]} 14. h5 $146 {[%emt 0:06:17]} ({Predecessor:} 14. O-O-O cxd5 15. exd5 Bf5 16. Nde4 Nxe4 17. Nxe4 Na6 18. a3 {1-0 (32) Arnaudov,P (2490)-Vavric,P (2239) Varna 2013}) 14... cxd5 {[%emt 0:01:06]} 15. cxd5 {[%emt 0:10:03]} b5 {[%emt 0:00:18][%cal Bb7b5,Bb5b4][%mdl 32] Inhibits Nc4.} 16. h6 {[%emt 0:03:01]} Bh8 {[%emt 0:00:22]} 17. Rg1 {[%emt 0:08:28]} (17. Bxc5 $14 dxc5 18. a4) 17... b4 $15 {[%emt 0:02:01]} 18. Nd1 {[%emt 0:00:07]} Nb5 {[%emt 0:04:53]} 19. Bxb5 {[%emt 0:04:16]} Bxb5 {[%emt 0:00:25]} 20. Bxc5 {[%emt 0:00:19] Threatens to win with Be3.} Rc8 {[%emt 0:00:42][%mdl 64] Pin} 21. Ne3 {[%emt 0:01:20]} Rxc5 $19 {[%emt 0:00:14]} 22. Ndc4 {[%emt 0:01:21] [#]} f6 $1 {[%emt 0:00:54]} 23. b3 {[%emt 0:02:07]} fxg5 {[%emt 0:01:36]} 24. Qd3 {[%emt 0:04:33]} Rf4 {[%emt 0:04:24]} 25. Ng4 {[%emt 0:00:42]} (25. Ng2 $142 Bxc4 26. bxc4) 25... Qc8 {[%emt 0:01:21]} 26. Nge3 {[%emt 0:00:39]} Qh3 {[%emt 0:01:13]} 27. a3 $2 {[%emt 0:00:42] [#]} (27. O-O-O) 27... bxa3 {[%emt 0:00:46] Black is clearly winning.} 28. Rxa3 {[%emt 0:00:14]} a4 {[%emt 0:00:28]} 29. Rxa4 {[%emt 0:01:32]} Bxa4 {[%emt 0:00:36]} 30. bxa4 {[%emt 0:00:01]} Qf3 {[%emt 0:00:32]} 31. Rf1 {[%emt 0:02:47]} Rxe4 {[%emt 0:01:35]} 32. Qa3 {[%emt 0:01:08] Weighted Error Value: White=0.72/Black=0.05 (flawless)} 0-1

[Event "Croatian 1A League 2022"]
[Site "Porec"]
[Date "2022.09.27"]
[Round "4.7"]
[White "Motylev, Alexander"]
[Black "Kaczur, Florian"]
[Result "1/2-1/2"]
[ECO "C42"]
[WhiteElo "2635"]
[BlackElo "2483"]
[Annotator "TA"]
[PlyCount "67"]
[EventDate "2022.09.24"]
[EventType "team-tourn"]
[EventCountry "CRO"]
[SourceTitle "playchess.com"]
[Source "ChessBase"]
[SourceQuality "1"]
[TimeControl "40/5400+30:1800+30"]

{[%evp 13,67,31,33,21,30,13,31,20,32,22,30,15,29,7,22,27,34,24,35,23,32,1,25,11,50,43,46,38,43,41,41,46,60,54,57,66,60,34,39,47,63,50,56,58,53,50,53,57,62,35,37,39,39,28,77,31]} 1. e4 {[%emt 0:00:04]} e5 {[%emt 0:00:17]} 2. Nf3 {[%emt 0:00:06]} Nf6 {[%emt 0:01:01]} 3. Nxe5 {[%emt 0:00:34]} d6 {[%emt 0:00:08]} 4. Nf3 {[%emt 0:00:08]} Nxe4 {[%emt 0:00:08]} 5. Nc3 {[%emt 0:00:04]} Nf6 {[%emt 0:01:14]} 6. d4 {[%emt 0:00:20]} Be7 {[%emt 0:00:48]} 7. Bd3 {[%emt 0:00:11]} O-O {[%emt 0:00:49]} 8. h3 {[%emt 0:01:12] 8.0-0 is the modern continuation. C42: Petroff Defence: 3 Nxe5 and unusual White 3rd moves.} Re8 {[%emt 0:02:47]} 9. O-O {[%emt 0:00:09]} Nbd7 {[%emt 0:07:54]} 10. Re1 {[%emt 0:02:19] White is slightly better.} a6 {[%emt 0:06:47]} 11. Ne2 {[%emt 0:12:02] [#]} b6 $146 {[%emt 0:05:13]} ({Predecessor:} 11... Bf8 12. Ng3 Rxe1+ 13. Qxe1 g6 14. c3 Bg7 15. Bg5 h6 16. Bd2 b6 17. Qc1 Qf8 {½-½ (24) Brazdzionis,A (2195)-Beinoras,M (2371) Vilnius 2015}) 12. c4 {[%emt 0:00:53]} Bb7 {[%emt 0:03:06]} 13. Nc3 {[%emt 0:01:47]} Bf8 {[%emt 0:02:27]} 14. Rxe8 {[%emt 0:02:44]} Qxe8 {[%emt 0:00:24]} 15. Bf4 {[%emt 0:00:10]} g6 {[%emt 0:02:59]} 16. Nd2 {[%emt 0:11:55]} Bg7 {[%emt 0:09:31]} 17. Be2 {[%emt 0:03:14][%cal Bd3e2,Be2f3,Bf3c6][%mdl 32]} Rd8 {[%emt 0:10:35]} 18. Bf3 {[%emt 0:02:05]} Bc8 {[%emt 0:00:18]} 19. Bc6 {[%emt 0:21:06]} Qe6 {[%emt 0:04:27]} 20. Bg5 {[%emt 0:09:11]} h6 {[%emt 0:03:35]} 21. Be3 {[%emt 0:00:33]} Nb8 {[%emt 0:02:48]} 22. Bf3 {[%emt 0:01:03]} Qe8 {[%emt 0:01:37]} 23. Nde4 {[%emt 0:05:33]} Nbd7 {[%emt 0:06:37]} 24. Qd2 {[%emt 0:04:13]} Nxe4 {[%emt 0:03:48]} 25. Bxe4 {[%emt 0:01:45]} Nf6 {[%emt 0:00:51]} 26. Bf3 {[%emt 0:00:10]} Qf8 {[%emt 0:01:11]} 27. a4 {[%emt 0:01:24]} Be6 {[%emt 0:02:54]} 28. d5 {[%emt 0:01:38]} Bc8 {[%emt 0:00:04]} 29. a5 {[%emt 0:00:41]} bxa5 {[%emt 0:00:14]} 30. Rxa5 {[%emt 0:00:30]} Nd7 {[%emt 0:00:16]} 31. Be2 {[%emt 0:07:06] White is more active.} f5 {[%emt 0:04:03]} 32. Bd4 {[%emt 0:01:16]} Bxd4 {[%emt 0:04:59]} 33. Qxd4 {[%emt 0:00:05]} f4 {[%emt 0:00:36]} (33... Qg7 $11 {might be stronger.} 34. Qxg7+ Kxg7) 34. f3 {[%emt 0:02:44] Weighted Error Value: White=0.06 (flawless) /Black=0.09 (flawless)} (34. b4 $16) 1/2-1/2

[Event "Croatian 1A League 2022"]
[Site "Porec"]
[Date "2022.09.27"]
[Round "4.8"]
[White "Janzelj, Tim"]
[Black "Postny, Evgeny"]
[Result "0-1"]
[ECO "D30"]
[WhiteElo "2456"]
[BlackElo "2573"]
[Annotator "TA"]
[PlyCount "130"]
[EventDate "2022.09.24"]
[EventType "team-tourn"]
[EventCountry "CRO"]
[SourceTitle "playchess.com"]
[Source "ChessBase"]
[SourceQuality "1"]
[TimeControl "40/5400+30:1800+30"]

{[%evp 10,130,22,10,18,23,31,13,24,0,0,0,10,-35,-45,-44,-7,-27,-33,-50,-46,-37,0,-12,-1,-14,-9,-7,-20,-25,-9,-23,-6,-5,0,-6,-6,-6,-15,-14,-8,-20,-16,-18,-7,-32,-32,-25,-22,-34,-9,-49,-31,-38,-47,-27,-25,-69,-69,-69,-69,-69,-58,-59,-59,-126,-42,-42,-60,-216,0,-8,-3,-3,0,-3,-3,-3,-3,-3,-3,-10,0,-127,-106,-127,-113,-155,-151,-149,-145,-131,-104,-334,-313,-927,-650,-29964,-29965,-29964,-29964,-29964,-29962,-29973,-29974,-5522,-5097,-29977,-29978,-29978,-29979,-29979,-29980,-29980,-29981,-29981,-29982,-29982,-29983,-29983,-29984,-29984,-29983]} 1. d4 {[%emt 0:00:30]} d5 {[%emt 0:00:29]} 2. c4 {[%emt 0:00:16]} c6 {[%emt 0:00:00]} 3. Nf3 {[%emt 0:00:17]} Nf6 {[%emt 0:00:00]} 4. Qb3 {[%emt 0:00:11]} dxc4 {[%emt 0:01:21]} 5. Qxc4 {[%emt 0:00:10]} e6 {[%emt 0:00:47]} 6. Bg5 {[%emt 0:01:26]} b5 {[%emt 0:00:31] D30: Queen's Gambit Declined: Systems without Nc3.} 7. Qc2 {[%emt 0:00:13]} Bb7 {[%emt 0:00:09]} 8. e3 {[%emt 0:02:33]} Nbd7 {[%emt 0:00:57] The position is equal.} 9. a4 {[%emt 0:02:54]} Rc8 {[%emt 0:05:03]} 10. Nbd2 {[%emt 0:02:58]} b4 {[%emt 0:03:22] [#]} 11. a5 $146 {[%emt 0:20:51]} ({Predecessor:} 11. Nb3 c5 12. dxc5 Bxc5 13. Qd2 Ne4 14. Bxd8 Nxd2 15. Nfxd2 Kxd8 16. Nxc5 Nxc5 17. Bb5 {0-1 (27) Hoerstmann,M (2336)-Kroeze,F (2415) Germany 2005}) 11... c5 {[%emt 0:11:56]} 12. Qa4 {[%emt 0:02:32]} cxd4 {[%emt 0:03:17]} 13. exd4 {[%emt 0:03:59]} Be7 {[%emt 0:12:59]} 14. Be2 {[%emt 0:05:07]} O-O {[%emt 0:00:59]} 15. O-O {[%emt 0:00:18]} Nd5 {[%emt 0:04:06]} 16. Bxe7 {[%emt 0:00:19]} Qxe7 {[%emt 0:00:06]} 17. g3 {[%emt 0:13:07] Prevents Nf4.} Rc7 {[%emt 0:05:13]} (17... N5f6 {with more complications.} 18. Rfc1 h6 19. Rc4 Rxc4 20. Nxc4 Rc8) 18. Rfc1 {[%emt 0:02:29]} Rfc8 {[%emt 0:01:08]} 19. Rxc7 {[%emt 0:01:01]} (19. Qd1 {feels hotter.} N5f6 20. Rxc7 Rxc7 21. Ne5) 19... Rxc7 {[%emt 0:00:06]} 20. Qd1 {[%emt 0:02:50]} Qd8 {[%emt 0:05:47]} 21. Nb3 {[%emt 0:04:38]} Qc8 {[%emt 0:06:54]} 22. Rc1 {[%emt 0:01:38]} Rxc1 {[%emt 0:03:58]} 23. Qxc1 {[%emt 0:00:22]} Qxc1+ {[%emt 0:00:34]} 24. Nxc1 {[%emt 0:00:30]} Kf8 {[%emt 0:01:13]} 25. Nb3 {[%emt 0:04:01]} Ne7 {[%emt 0:05:11]} 26. Ne5 $1 {[%emt 0:09:10]} Nb8 {[%emt 0:00:39]} 27. Bc4 {[%emt 0:06:13]} Nf5 {[%emt 0:07:40]} 28. Kf1 {[%emt 0:11:37]} Nd6 {[%emt 0:04:03]} 29. Bd3 {[%emt 0:00:01]} f6 {[%emt 0:03:04]} 30. Nc5 {[%emt 0:01:01]} (30. Nc4 $5 {[%cal Rc4d6]} Ba6 31. Nxd6 Bxd3+ 32. Ke1 $15) 30... Bd5 {[%emt 0:01:05] Against Nc4} ({Don't take} 30... fxe5 31. dxe5 Nf7 32. Nxb7 $14) 31. Ned7+ {[%emt 0:00:22]} Nxd7 {[%emt 0:00:12]} 32. Nxd7+ $15 {[%emt 0:00:09][%mdl 4096] Endgame KBN-KBN} Ke7 {[%emt 0:00:12]} 33. Nc5 {[%emt 0:00:24]} Nc4 {[%emt 0:02:06]} 34. Bxc4 {[%emt 0:00:59]} Bxc4+ {[%emt 0:00:04] KB-KN} 35. Ke1 $1 {[%emt 0:00:06]} Kd6 $1 {[%emt 0:00:22] And now ...Kd5 would win.} 36. Kd2 {[%emt 0:00:26]} Kc6 {[%emt 0:05:45]} 37. f4 {[%emt 0:01:06]} (37. Ke3 $15) 37... h5 {[%emt 0:05:17]} (37... Kb5 $1 $17 38. a6 Kc6) 38. Ke3 $1 {[%emt 0:01:08]} Kb5 {[%emt 0:00:59]} 39. Nb7 {[%emt 0:01:14]} (39. a6 $1 $15) 39... Kc6 $2 {[%emt 0:00:51]} ({Black should try} 39... Bd5 $19 40. Nd6+ Kxa5) 40. Nc5 $11 {[%emt 0:00:00]} Bd5 {[%emt 0:00:00]} 41. Na6 $1 {[%emt 0:14:28]} Bc4 {[%emt 0:24:40]} 42. Nxb4+ {[%emt 0:02:45]} Kb5 {[%emt 0:00:04]} 43. Nc2 {[%emt 0:00:58] aiming for Na3+.} Bb3 {[%emt 0:00:49]} 44. Na1 {[%emt 0:03:05]} Bd5 {[%emt 0:00:16]} 45. Kd3 {[%emt 0:00:13]} Kb4 {[%emt 0:02:19]} 46. Kd2 {[%emt 0:08:25] [#]} (46. Nc2+ $11 {remains equal.} Kxa5 47. Ne3) 46... Be4 $1 $17 {[%emt 0:01:47]} ({But not} 46... Kxa5 $6 47. Kc3 $11) 47. Ke3 {[%emt 0:01:17]} Bf5 {[%emt 0:00:10]} 48. d5 {[%emt 0:02:54]} exd5 {[%emt 0:00:25]} 49. Kd4 {[%emt 0:00:00] [#]} Be4 {[%emt 0:00:29] Black is more active.} ({Don't play} 49... Kxa5 $6 50. Kxd5 Kb4 51. Kd6 $11) 50. a6 {[%emt 0:00:17]} g5 {[%emt 0:01:13]} 51. fxg5 $2 {[%emt 0:00:38]} (51. h4 $17 gxh4 52. gxh4) 51... fxg5 $19 {[%emt 0:00:03][%cal Bf6g5,Bg5g4][%mdl 32] Hoping for ...g4.} 52. h4 $2 {[%emt 0:00:23]} (52. Ke3 Kc4 53. Kd2) 52... g4 {[%emt 0:00:05]} 53. b3 {[%emt 0:00:18]} Ka3 {[%emt 0:05:05]} 54. Kc3 {[%emt 0:01:30]} Bf5 {[%emt 0:00:35]} 55. b4 {[%emt 0:00:58]} d4+ $1 {[%emt 0:00:14]} 56. Kxd4 {[%emt 0:00:25]} Kxb4 {[%emt 0:00:10]} 57. Ke5 {[%emt 0:00:13]} Bd3 {[%emt 0:00:36] ( -> ...Kc3)} 58. Kf6 {[%emt 0:00:17]} Kc3 {[%emt 0:00:39] Black mates.} 59. Kg5 {[%emt 0:00:06]} Kb2 {[%emt 0:00:33]} 60. Kxh5 {[%emt 0:00:11]} Kxa1 {[%emt 0:00:06]} 61. Kxg4 {[%emt 0:00:22]} Bxa6 {[%emt 0:00:19] KB-KPP} 62. h5 {[%emt 0:00:16]} Bd3 {[%emt 0:00:36]} 63. Kg5 {[%emt 0:00:15]} a5 {[%emt 0:00:11][%cal Ba7a5,Ba5a4,Ba4a3][%mdl 32]} 64. h6 {[%emt 0:00:24]} a4 {[%emt 0:00:06]} 65. Kf6 {[%emt 0:00:04]} a3 {[%emt 0:00:07] Weighted Error Value: White=0.42/Black=0.10 (very precise)} 0-1

[Event "Croatian 1A League 2022"]
[Site "Porec"]
[Date "2022.09.27"]
[Round "4.9"]
[White "Bosiocic, Marin"]
[Black "Ivekovic, Bozidar"]
[Result "1-0"]
[ECO "A87"]
[WhiteElo "2548"]
[BlackElo "2407"]
[Annotator "TA"]
[PlyCount "79"]
[EventDate "2022.09.24"]
[EventType "team-tourn"]
[EventCountry "CRO"]
[SourceTitle "playchess.com"]
[Source "ChessBase"]
[SourceQuality "1"]
[TimeControl "40/5400+30:1800+30"]

{[%evp 14,78,53,53,46,47,44,33,40,31,25,0,12,-10,-11,-23,-14,-13,-23,-10,-19,-20,0,0,29,34,33,-131,-118,-106,-141,-102,178,178,178,172,157,157,166,146,150,129,390,375,395,427,429,411,507,465,529,420,535,504,881,881,814,811,1723,1561,1540,1401,29996,29997,29997,29998,29999]} 1. Nf3 {[%emt 0:00:08]} e6 {[%emt 0:00:21]} 2. g3 {[%emt 0:00:09]} f5 {[%emt 0:01:24]} 3. Bg2 {[%emt 0:00:16]} Nf6 {[%emt 0:00:03]} 4. O-O {[%emt 0:00:17]} g6 {[%emt 0:00:49]} 5. d4 {[%emt 0:01:55][%cal Bd2d4,Bd4d5][%mdl 32]} Bg7 {[%emt 0:00:57]} 6. c4 {[%emt 0:00:10]} O-O {[%emt 0:00:15]} 7. Nc3 {[%emt 0:00:13]} d6 {[%emt 0:01:45][%cal Bd7d6,Bd6e5,Be5e4][%mdl 32]} 8. Re1 {[%emt 0:03:10]} Nc6 {[%emt 0:09:52] A87: Dutch Defence: Leningrad System: 5 Nf3.} 9. d5 {[%emt 0:03:04]} Ne5 {[%emt 0:06:11]} 10. Nxe5 {[%emt 0:04:08]} dxe5 {[%emt 0:00:04] White is slightly better.} 11. e4 {[%emt 0:00:25][%cal Be2e4,Be4d5,Bd5d6][%mdl 32]} exd5 {[%emt 0:12:56]} 12. exd5 {[%emt 0:04:11]} e4 {[%emt 0:00:23]} 13. Bf4 {[%emt 0:02:23] [#]} Ng4 $146 {[%emt 0:05:29]} ({Predecessor:} 13... Nh5 14. Be3 f4 15. gxf4 Qh4 16. Qd2 g5 17. Bd4 e3 18. fxe3 gxf4 19. Bxg7 Kxg7 {0-1 (28) Rossmann,H-Welz,P Rostock 1981}) 14. Nb5 {[%emt 0:07:05]} Ne5 {[%emt 0:01:31]} 15. d6 {[%emt 0:00:48]} c6 $1 {[%emt 0:07:44]} 16. Nc7 {[%emt 0:00:35]} Rb8 {[%emt 0:00:09]} 17. Be3 {[%emt 0:11:10]} Nd3 {[%emt 0:12:02]} 18. Bxa7 {[%emt 0:00:43]} Qxd6 {[%emt 0:00:05]} 19. Bxb8 {[%emt 0:00:14] Black must now prevent Bf1.} Qc5 {[%emt 0:00:13]} 20. Re3 $2 {[%emt 0:07:57] [#]} (20. Re2 $14 {stays ahead.} Bd4 21. Qb3 Nxf2 22. Rd2) 20... Nxf2 $1 $17 {[%emt 0:03:54][%mdl 512]} 21. Kxf2 {[%emt 0:03:03]} f4 {[%emt 0:15:13]} 22. gxf4 {[%emt 0:00:05]} Bd4 $2 {[%emt 0:01:00][%mdl 8192] [#]} (22... Rxf4+ $17 {and life is bright.} 23. Kg1 Qxe3+ 24. Kh1 Bh3 25. Bxh3 Qxh3) 23. Nd5 $1 $18 {[%emt 0:09:52]} cxd5 {[%emt 0:00:27] [#]} 24. Qd2 {[%emt 0:00:22] Rd1 is the strong threat.} Bg4 {[%emt 0:07:57] [#] Against Rd1} 25. b4 $1 {[%emt 0:06:21]} Qxc4 {[%emt 0:02:06]} 26. Bf1 {[%emt 0:01:07]} Bxe3+ {[%emt 0:02:02]} 27. Qxe3 {[%emt 0:01:35] Really sharp!} Qc8 {[%emt 0:02:11][%mdl 8192] This move loses the game for Black.} (27... Qc2+ $16 {keeps fighting.} 28. Kg3 Rxb8) 28. Bd6 {[%emt 0:02:58]} ({Resist} 28. Be5 g5 29. Qb6 Qf5 $18) 28... Rf6 {[%emt 0:02:24][%cal Bf8f6,Bf6c6,Bc6c2][%mdl 32]} 29. Be5 {[%emt 0:03:38][%cal Bd6e5,Be5d4,Bd4f6][%mdl 32]} Rc6 {[%emt 0:00:06]} 30. Qg3 {[%emt 0:04:53]} Rc2+ {[%emt 0:01:31]} 31. Kg1 {[%emt 0:00:10]} Bf3 {[%emt 0:00:02]} 32. Qh4 {[%emt 0:05:21] Against Qd8. Threatens to win with Bh3.} Qe6 {[%emt 0:03:51] ( -> ...Qb6+)} 33. Bd4 {[%emt 0:02:08] Against Qb6} Bg4 {[%emt 0:00:08]} (33... Qd6 $142 34. a4 Rd2) 34. Qd8+ {[%emt 0:01:51]} Kf7 {[%emt 0:00:04]} 35. Qh8 {[%emt 0:00:41] Hoping for Bb5.} Bh5 {[%emt 0:00:29]} 36. Qg7+ {[%emt 0:01:45]} Ke8 {[%emt 0:00:01]} 37. Bb5+ {[%emt 0:00:28]} Kd8 {[%emt 0:00:01]} 38. Bf6+ {[%emt 0:00:23] White mates.} Kc8 {[%emt 0:00:03]} 39. Qf8+ {[%emt 0:00:12]} Kc7 {[%emt 0:00:01]} 40. Qd8# {[%emt 0:00:40] Weighted Error Value: White=0.16 (very precise) /Black=0.46} 1-0